bitfinex/quotes_BTCUSD_20241120
["timestamp","ask_amount","ask_price","bid_price","bid_amount"]
[1732070717012,0.08,91875.0,91867.0,0.14506932]
[1732070717223,0.08,91875.0,91867.0,0.04506932]
[1732070717480,0.08,91875.0,91864.0,0.19723936]
[1732070717481,0.00737231,91874.0,91864.0,0.1]
[1732070717907,0.00737231,91874.0,91864.0,0.14322156]
[1732070718129,0.00737231,91874.0,91864.0,0.04322156]
[1732070718362,0.08,91875.0,91857.0,0.09713485]
[1732070718598,0.08,91875.0,91856.0,0.1]
[1732070718599,0.08,91875.0,91861.0,0.09713485]
[1732070718849,0.08,91875.0,91862.0,0.09713485]
[1732070719256,0.08,91875.0,91861.0,0.1]
[1732070719257,0.08,91875.0,91861.0,0.19713485]
[1732070719460,0.00737231,91874.0,91861.0,0.1]
[1732070719665,0.08,91875.0,91861.0,0.1]
[1732070720345,0.08,91875.0,91857.0,0.09713485]
[1732070720578,0.08,91875.0,91863.0,0.00262769]
[1732070720772,0.08,91875.0,91865.0,0.1]
[1732070721852,0.08,91875.0,91859.0,0.09713485]
[1732070722056,0.08,91875.0,91860.0,0.1]
[1732070723355,0.0466,91874.0,91859.0,0.04418733]
[1732070723579,0.0466,91874.0,91855.0,0.19713485]
[1732070723835,0.0466,91874.0,91857.0,0.1]
[1732070726374,0.0466,91874.0,91852.0,0.09713485]
[1732070726616,0.08797231,91873.0,91855.0,0.04394005]
[1732070726808,0.08797231,91873.0,91853.0,0.1]
[1732070726809,0.00737231,91869.0,91853.0,0.1]
[1732070727011,0.0806,91867.0,91851.0,0.0442885]
[1732070727443,0.0806,91867.0,91841.0,0.09693787]
[1732070727683,0.0806,91867.0,91839.0,0.15540681]
[1732070727684,0.0806,91863.0,91857.0,0.0017074]
[1732070732565,0.08797231,91863.0,91857.0,0.0017074]
[1732070732736,0.05579376,91862.0,91857.0,0.0017074]
[1732070732947,0.0806,91861.0,91857.0,0.0017074]
[1732070733376,0.00737231,91858.0,91857.0,0.0017074]
[1732070733600,0.0806,91861.0,91857.0,0.0017074]
[1732070734296,0.00737231,91858.0,91857.0,0.0017074]
[1732070734946,0.0806,91861.0,91857.0,0.0017074]
[1732070735432,0.0806,91861.0,91857.0,0.04584098]
[1732070735829,0.0806,91861.0,91857.0,0.0017074]
[1732070736048,0.0806,91861.0,91857.0,0.04521454]
[1732070736253,0.0806,91861.0,91857.0,0.0017074]
[1732070738153,0.0806,91861.0,91857.0,0.045983]
[1732070738407,0.00272147,91870.0,91857.0,0.045983]
[1732070738408,0.00272147,91870.0,91858.0,0.10906255]
[1732070738650,0.0806,91876.0,91858.0,0.10906255]
[1732070738651,0.0806,91876.0,91859.0,0.1]
[1732070738834,0.0806,91876.0,91861.0,0.1]
[1732070739064,0.0806,91876.0,91863.0,0.1]
[1732070739517,0.0457,91881.0,91863.0,0.1]
[1732070739733,0.0457,91881.0,91865.0,0.1]
[1732070739977,0.0457,91881.0,91866.0,0.10906255]
[1732070740165,0.0457,91881.0,91867.0,0.1]
[1732070740374,0.0008537,91876.0,91867.0,0.20906255]
[1732070740613,0.0008537,91876.0,91867.0,0.1]
[1732070741099,0.0008537,91876.0,91860.0,0.11]
[1732070741302,0.0008537,91876.0,91862.0,0.01]
[1732070741528,0.0008537,91876.0,91863.0,0.10906255]
[1732070741792,0.0008537,91876.0,91864.0,0.1]
[1732070742043,0.0008537,91876.0,91866.0,0.1]
[1732070742241,0.0008537,91876.0,91867.0,0.10906255]
[1732070742677,0.0008537,91876.0,91868.0,0.1]
[1732070745940,0.0008537,91876.0,91862.0,0.01262769]
[1732070746210,0.0008537,91876.0,91863.0,0.10906255]
[1732070747509,0.0008537,91876.0,91864.0,0.00262769]
[1732070747738,0.0008537,91876.0,91865.0,0.10906255]
[1732070747949,0.0138766,91887.0,91866.0,0.11]
[1732070748165,0.0138766,91887.0,91866.0,0.10894144]
[1732070749206,0.0138766,91887.0,91866.0,0.1]
[1732070750484,0.0138766,91887.0,91864.0,0.24558489]
[1732070750624,0.1326,91877.0,91865.0,0.1]
[1732070751720,0.1326,91877.0,91861.0,0.14558489]
[1732070751721,0.1326,91877.0,91862.0,0.1]
[1732070752365,0.1326,91877.0,91864.0,0.14558489]
[1732070752588,0.1326,91877.0,91865.0,0.1]
[1732070752802,0.1334542,91877.0,91865.0,0.24558489]
[1732070753475,0.1334542,91877.0,91868.0,0.1]
[1732070754320,0.1334542,91877.0,91863.0,0.0017084]
[1732070754321,0.1334542,91877.0,91870.0,0.1]
[1732070754761,0.0835542,91877.0,91870.0,0.1]
[1732070754964,0.0835542,91877.0,91870.0,0.24558489]
[1732070755629,0.0835542,91877.0,91870.0,0.14607467]
[1732070755845,0.0835542,91877.0,91871.0,0.1]
[1732070756069,0.0835542,91877.0,91876.0,0.09738275]
[1732070757442,0.0835542,91877.0,91875.0,0.1]
[1732070757890,0.0835542,91877.0,91876.0,0.09740908]
[1732070758294,0.0835542,91877.0,91875.0,0.1]
[1732070758494,0.0835542,91877.0,91876.0,0.09740816]
[1732070758719,0.0835542,91877.0,91874.0,0.1]
[1732070758720,0.0835542,91877.0,91875.0,0.09740816]
[1732070759158,0.0835542,91877.0,91874.0,0.1]
[1732070759159,0.0835542,91877.0,91876.0,0.09740816]
[1732070760996,0.0835542,91877.0,91875.0,0.14607467]
[1732070761121,0.0835542,91877.0,91876.0,0.1]
[1732070762304,0.1334542,91877.0,91874.0,0.14367628]
[1732070762984,0.1334542,91877.0,91874.0,0.04367628]
[1732070763204,0.1334542,91877.0,91876.0,0.09740719]
[1732070763646,0.1334542,91877.0,91876.0,0.1]
[1732070765009,0.1334542,91877.0,91874.0,0.09738664]
[1732070765303,0.0008542,91877.0,91874.0,0.09738664]
[1732070765670,0.0008542,91877.0,91875.0,0.09738664]
[1732070766110,0.0008542,91877.0,91875.0,0.1]
[1732070766322,0.0008542,91877.0,91875.0,0.24607996]
[1732070766767,0.0008542,91877.0,91875.0,0.1]
[1732070766978,0.0008542,91877.0,91876.0,0.09738747]
[1732070767187,0.0008542,91877.0,91876.0,0.1]
[1732070768045,0.0008542,91877.0,91876.0,0.24607996]
[1732070768505,0.0008542,91877.0,91876.0,0.1]
[1732070768735,0.0008542,91877.0,91874.0,0.04466417]
[1732070769030,0.0008542,91877.0,91875.0,0.03723085]
[1732070769298,0.0008542,91877.0,91875.0,0.24337429]
[1732070769436,0.0008542,91877.0,91876.0,0.1]
[1732070769614,0.0008542,91877.0,91876.0,0.34337429]
[1732070770765,0.0008542,91877.0,91876.0,0.1]
[1732070771210,0.00079944,91878.0,91870.0,0.1]
[1732070771422,0.00079944,91878.0,91877.0,0.34324499]
[1732070771898,0.00079944,91878.0,91877.0,0.1]
[1732070772393,0.00079944,91878.0,91877.0,0.34324499]
[1732070773289,0.00079944,91878.0,91877.0,0.24324886]
[1732070773737,0.00079944,91878.0,91877.0,0.1]
[1732070774444,0.00079944,91878.0,91877.0,0.29460507]
[1732070774645,0.00079944,91878.0,91877.0,0.29461168]
[1732070775329,0.00079944,91878.0,91868.0,0.1434787]
[1732070775330,0.00079944,91878.0,91876.0,0.34324886]
[1732070777268,0.00079944,91878.0,91877.0,0.24324886]
[1732070777665,0.00079944,91878.0,91877.0,0.34324886]
[1732070778330,0.00079944,91878.0,91877.0,0.1]
[1732070779073,0.00079944,91878.0,91871.0,0.1]
[1732070779308,0.00079944,91878.0,91877.0,0.1]
[1732070780323,0.00079944,91878.0,91872.0,0.39189863]
[1732070780776,0.00079944,91878.0,91873.0,0.1]
[1732070780951,0.00079944,91878.0,91875.0,0.1]
[1732070781451,0.00079944,91878.0,91875.0,0.39189863]
[1732070781653,0.00079944,91878.0,91877.0,0.1]
[1732070781865,0.00079944,91878.0,91875.0,0.39189863]
[1732070782278,0.00079944,91878.0,91877.0,0.29189863]
[1732070782690,0.00079944,91878.0,91877.0,0.39189863]
[1732070783314,0.00079944,91878.0,91877.0,0.1]
[1732070783798,0.00079944,91878.0,91871.0,0.1]
[1732070784315,0.00079944,91878.0,91872.0,0.43100658]
[1732070784529,0.00079944,91878.0,91873.0,0.1]
[1732070785617,0.00079944,91878.0,91872.0,0.1]
[1732070786489,0.00079944,91878.0,91869.0,0.1]
[1732070787898,0.00079944,91878.0,91866.0,0.29423367]
[1732070788148,0.0806,91877.0,91866.0,0.29423367]
[1732070788354,0.0806,91877.0,91876.0,0.24378845]
[1732070788621,0.0806,91877.0,91875.0,0.19505399]
[1732070788860,0.01368545,91874.0,91873.0,0.14630282]
[1732070789082,0.09428545,91871.0,91868.0,0.14630282]
[1732070789299,0.06048545,91867.0,91866.0,0.04646032]
[1732070789534,0.250148,91867.0,91866.0,0.04646032]
[1732070793947,0.13371314,91867.0,91866.0,0.04646032]
[1732070794472,0.0806,91867.0,91866.0,0.04646032]
[1732070794644,0.05311314,91876.0,91866.0,0.04646032]
[1732070794645,0.0806,91876.0,91866.0,0.04646032]
[1732070794852,0.0806,91876.0,91867.0,0.19732967]
[1732070795088,0.00079944,91878.0,91870.0,0.09732967]
[1732070795354,0.00079944,91878.0,91869.0,0.1]
[1732070795355,0.00079944,91878.0,91873.0,0.09732967]
[1732070795531,0.00079944,91878.0,91871.0,0.1]
[1732070795532,0.00079944,91878.0,91874.0,0.09732967]
[1732070795993,0.00079944,91878.0,91875.0,0.09732967]
[1732070796472,0.00079944,91878.0,91874.0,0.1]
[1732070796684,0.00079944,91878.0,91877.0,0.1]
[1732070797556,0.00079944,91878.0,91877.0,0.19728263]
[1732070797784,0.00079944,91878.0,91877.0,0.1]
[1732070797993,0.00079944,91878.0,91876.0,0.1]
[1732070798202,0.00079944,91878.0,91876.0,0.2459569]
[1732070798407,0.00079944,91878.0,91876.0,0.1]
[1732070799089,0.00079944,91878.0,91876.0,0.2459569]
[1732070799310,0.00079944,91878.0,91876.0,0.09727792]
[1732070801068,0.00079944,91878.0,91876.0,0.09732292]
[1732070801069,0.04729944,91878.0,91876.0,0.09732292]
[1732070801280,0.04729944,91878.0,91876.0,4.5e-05]
[1732070801487,0.01009332,91877.0,91876.0,4.5e-05]
[1732070801700,0.01640646,91877.0,91876.0,0.04388375]
[1732070801901,0.01640646,91877.0,91876.0,4.5e-05]
[1732070802340,0.01368545,91877.0,91876.0,4.5e-05]
[1732070803874,0.122748,91877.0,91876.0,4.5e-05]
[1732070804120,0.1254691,91877.0,91876.0,4.5e-05]
[1732070805239,0.122748,91877.0,91876.0,0.04401165]
[1732070805445,0.122748,91877.0,91876.0,4.5e-05]
[1732070805655,0.12546921,91877.0,91876.0,4.5e-05]
[1732070805880,0.122748,91877.0,91876.0,4.5e-05]
[1732070806290,0.12546915,91877.0,91876.0,4.5e-05]
[1732070806722,0.11537569,91877.0,91876.0,4.5e-05]
[1732070807213,0.122748,91877.0,91876.0,4.5e-05]
[1732070807444,0.12546916,91877.0,91876.0,4.5e-05]
[1732070807666,0.122748,91877.0,91876.0,4.5e-05]
[1732070808554,0.12546916,91877.0,91876.0,4.5e-05]
[1732070808755,0.122748,91877.0,91876.0,4.5e-05]
[1732070809167,0.11537569,91877.0,91876.0,4.5e-05]
[1732070809587,0.122748,91877.0,91876.0,4.5e-05]
[1732070811414,0.12546915,91877.0,91876.0,4.5e-05]
[1732070811839,0.20612325,91877.0,91876.0,4.5e-05]
[1732070812907,0.25262325,91877.0,91876.0,4.5e-05]
[1732070813164,0.2499021,91877.0,91876.0,4.5e-05]
[1732070813401,0.2599021,91877.0,91876.0,4.5e-05]
[1732070817127,0.2699021,91877.0,91876.0,4.5e-05]
[1732070817347,0.2719021,91877.0,91876.0,4.5e-05]
[1732070820117,0.2699021,91877.0,91876.0,4.5e-05]
[1732070822522,0.24252979,91877.0,91876.0,4.5e-05]
[1732070822806,0.2499021,91877.0,91876.0,4.5e-05]
[1732070823075,0.2499021,91877.0,91876.0,0.04480545]
[1732070823289,0.2499021,91877.0,91876.0,4.5e-05]
[1732070823494,0.2034021,91877.0,91876.0,4.5e-05]
[1732070823879,0.2061233,91877.0,91876.0,4.5e-05]
[1732070825812,0.19981016,91877.0,91876.0,4.5e-05]
[1732070826033,0.0008541,91877.0,91876.0,4.5e-05]
[1732070827551,0.0008541,91877.0,91876.0,0.100045]
[1732070828448,0.0008541,91877.0,91876.0,0.24581144]
[1732070828652,0.0008541,91877.0,91876.0,4.5e-05]
[1732070828861,0.0008541,91877.0,91876.0,0.100045]
[1732070830403,0.0008541,91877.0,91876.0,0.29441534]
[1732070830841,0.0008541,91877.0,91876.0,0.100045]
[1732070831461,0.0008541,91877.0,91876.0,0.29441534]
[1732070831880,0.0008541,91877.0,91876.0,0.100045]
[1732070832124,0.0008541,91877.0,91876.0,0.29441534]
[1732070832371,0.0008541,91877.0,91876.0,0.24582858]
[1732070832592,0.0780541,91877.0,91876.0,4.5e-05]
[1732070832778,0.0780541,91877.0,91870.0,0.1]
[1732070832779,0.19448896,91877.0,91870.0,0.1]
[1732070832983,0.00631314,91873.0,91866.0,0.0017084]
[1732070833235,0.00737231,91867.0,91866.0,0.04677027]
[1732070833515,0.122748,91867.0,91866.0,0.0017084]
[1732070833726,0.12546961,91867.0,91866.0,0.0017084]
[1732070833910,0.122748,91867.0,91866.0,0.0017084]
[1732070834334,0.11537569,91867.0,91866.0,0.0017084]
[1732070834571,0.0027216,91876.0,91866.0,0.0017084]
[1732070834572,0.00631314,91868.0,91866.0,0.0017084]
[1732070834783,0.00631314,91867.0,91866.0,0.0017084]
[1732070835001,0.122748,91867.0,91866.0,0.0017084]
[1732070835870,0.00631314,91872.0,91866.0,0.0017084]
[1732070836090,0.00631314,91867.0,91866.0,0.0017084]
[1732070837136,0.11537569,91872.0,91866.0,0.0017084]
[1732070837595,0.00631314,91872.0,91866.0,0.0017084]
[1732070838804,0.00631314,91868.0,91866.0,0.0017084]
[1732070839225,0.00631314,91867.0,91866.0,0.0017084]
[1732070840259,0.00631314,91869.0,91866.0,0.0017084]
[1732070840670,0.00631314,91874.0,91866.0,0.0017084]
[1732070840883,0.01368545,91874.0,91866.0,0.0017084]
[1732070841131,0.00631314,91872.0,91866.0,0.0017084]
[1732070841308,0.00631314,91869.0,91866.0,0.0017084]
[1732070841525,0.00737231,91874.0,91866.0,0.0017084]
[1732070841526,0.0008541,91877.0,91866.0,0.0017084]
[1732070841827,0.0008541,91877.0,91868.0,0.1]
[1732070841950,0.0008541,91877.0,91872.0,0.1]
[1732070842188,0.0008541,91877.0,91872.0,0.24604835]
[1732070842603,0.0008541,91877.0,91874.0,0.1]
[1732070842847,0.0008541,91877.0,91875.0,0.19464683]
[1732070843013,0.0008541,91877.0,91876.0,0.1]
[1732070843653,0.0008541,91877.0,91876.0,0.29464683]
[1732070843944,0.00822641,91877.0,91876.0,0.146015]
[1732070844079,0.08542641,91877.0,91876.0,0.04461556]
[1732070844274,0.08542641,91877.0,91875.0,0.09735634]
[1732070844480,0.00737231,91875.0,91874.0,0.19735634]
[1732070844713,0.00737231,91875.0,91874.0,0.1]
[1732070844941,0.18711665,91877.0,91874.0,0.1]
[1732070845146,0.0008541,91877.0,91874.0,0.1]
[1732070845353,0.0008541,91877.0,91874.0,0.09735634]
[1732070845771,0.0008541,91877.0,91875.0,0.09735634]
[1732070847141,0.0008541,91877.0,91873.0,0.246015]
[1732070847299,0.01724328,91887.0,91875.0,0.09736083]
[1732070847524,0.00336668,91884.0,91875.0,0.09736083]
[1732070848890,0.00336668,91884.0,91876.0,0.09736083]
[1732070849344,0.01724328,91887.0,91876.0,0.09736083]
[1732070849566,0.01724328,91887.0,91877.0,0.09736083]
[1732070849567,0.0138766,91887.0,91877.0,0.09736083]
[1732070850686,0.0138766,91887.0,91880.0,0.09736083]
[1732070851161,0.0138766,91887.0,91878.0,0.1]
[1732070851162,0.0138766,91887.0,91881.0,0.09736083]
[1732070851843,0.0138766,91887.0,91878.0,0.1]
[1732070851844,0.0138766,91887.0,91882.0,0.09736083]
[1732070854263,0.00336668,91884.0,91882.0,0.09736083]
[1732070854505,0.00336668,91884.0,91883.0,0.09736083]
[1732070854915,0.00336668,91884.0,91882.0,0.09736083]
[1732070855147,0.00336668,91884.0,91883.0,0.09736083]
[1732070855355,0.00336668,91884.0,91882.0,0.09736083]
[1732070855633,0.00336668,91884.0,91881.0,0.09736083]
[1732070856291,0.00336668,91884.0,91879.0,0.09736083]
[1732070856515,0.00336668,91884.0,91878.0,0.19736083]
[1732070859608,0.00336668,91884.0,91879.0,0.09736083]
[1732070860294,0.00336668,91884.0,91880.0,0.09736083]
[1732070860935,0.00336668,91884.0,91880.0,0.0971736]
[1732070861368,0.00336668,91884.0,91880.0,0.09719458]
[1732070862449,0.00336668,91884.0,91881.0,0.09719458]
[1732070864423,0.00336668,91884.0,91882.0,0.09719458]
[1732070864854,0.00336668,91884.0,91883.0,0.09719458]
[1732070866567,0.00336668,91884.0,91881.0,0.14579188]
[1732070866797,0.0147306,91887.0,91883.0,0.09726767]
[1732070867007,0.00336668,91885.0,91884.0,0.09726741]
[1732070867446,0.00336668,91885.0,91882.0,0.14579188]
[1732070867676,0.00336668,91885.0,91878.0,0.34298646]
[1732070867677,0.00336668,91885.0,91883.0,0.09728074]
[1732070867876,0.00336668,91885.0,91881.0,0.14579188]
[1732070867877,0.00336668,91885.0,91884.0,0.09728074]
[1732070869445,0.00336668,91885.0,91883.0,0.14579188]
[1732070869660,0.00336668,91884.0,91883.0,0.14579188]
[1732070869868,0.0147306,91887.0,91883.0,0.14579188]
[1732070870084,0.00336668,91886.0,91885.0,0.09731287]
[1732070870324,0.00336668,91884.0,91883.0,0.14579188]
[1732070871145,0.0147306,91887.0,91883.0,0.14579188]
[1732070871364,0.0147306,91887.0,91884.0,0.14579188]
[1732070871365,0.00336668,91885.0,91884.0,0.14579188]
[1732070871602,0.0147306,91887.0,91884.0,0.14579188]
[1732070871811,0.0147306,91887.0,91886.0,0.09733813]
[1732070872040,0.01809728,91887.0,91886.0,0.09733813]
[1732070872452,0.01809728,91887.0,91885.0,0.14579188]
[1732070872681,0.00336668,91886.0,91885.0,0.14579188]
[1732070875905,0.00336668,91886.0,91885.0,0.14599423]
[1732070876352,0.00336668,91886.0,91884.0,0.14599423]
[1732070876553,0.00336668,91886.0,91879.0,0.24332373]
[1732070876554,0.13913899,91885.0,91883.0,0.14599423]
[1732070876848,0.13913899,91885.0,91882.0,0.09734226]
[1732070876849,0.01073899,91883.0,91882.0,0.09734226]
[1732070877018,0.01073899,91883.0,91878.0,0.29465898]
[1732070877019,0.01073899,91883.0,91881.0,0.09734226]
[1732070877438,0.00737231,91883.0,91881.0,0.09734226]
[1732070877669,0.01073899,91883.0,91881.0,0.09734226]
[1732070878141,0.01073899,91883.0,91882.0,0.09734226]
[1732070878340,0.11980154,91883.0,91882.0,0.09734226]
[1732070878571,0.11980154,91883.0,91878.0,0.1]
[1732070878572,0.00737231,91881.0,91880.0,0.09734226]
[1732070878770,0.00737231,91879.0,91877.0,0.04535328]
[1732070879007,0.1284,91885.0,91877.0,0.04535328]
[1732070879008,0.12252262,91878.0,91877.0,0.04535328]
[1732070879846,0.20142262,91878.0,91877.0,0.04535328]
[1732070880713,0.19870154,91878.0,91877.0,0.04535328]
[1732070881151,0.19870154,91878.0,91877.0,0.14278947]
[1732070881356,0.19870154,91878.0,91877.0,0.04535328]
[1732070881799,0.19870154,91878.0,91877.0,0.14281296]
[1732070882454,0.19870154,91878.0,91877.0,0.04535328]
[1732070882892,0.19870154,91878.0,91877.0,0.14281651]
[1732070883177,0.19870154,91878.0,91877.0,0.04535328]
[1732070883801,0.19870154,91878.0,91877.0,0.1915269]
[1732070884009,0.19870154,91878.0,91877.0,0.04535328]
[1732070884452,0.19870154,91878.0,91877.0,0.1915269]
[1732070884661,0.19870154,91878.0,91877.0,0.04535328]
[1732070885111,0.19870154,91878.0,91877.0,0.24025144]
[1732070885352,0.19870154,91878.0,91877.0,0.04535328]
[1732070886050,0.19870154,91878.0,91877.0,0.19158602]
[1732070886255,0.19870154,91878.0,91877.0,0.04535328]
[1732070886469,0.19870154,91878.0,91877.0,0.14285778]
[1732070886682,0.19870154,91878.0,91877.0,0.04535328]
[1732070888914,0.19870154,91878.0,91877.0,0.14286566]
[1732070889124,0.19870154,91878.0,91877.0,0.04535328]
[1732070889771,0.24490154,91878.0,91877.0,0.04535328]
[1732070890197,0.24490154,91878.0,91877.0,0.001708]
[1732070890865,0.25490154,91878.0,91877.0,0.001708]
[1732070891092,0.27790154,91878.0,91877.0,0.001708]
[1732070891455,0.13573899,91867.0,91866.0,0.0017084]
[1732070891799,0.29052323,91867.0,91866.0,0.0017084]
[1732070891816,0.28780154,91867.0,91866.0,0.0017084]
[1732070892265,0.28980154,91867.0,91866.0,0.0017084]
[1732070893559,0.28780154,91867.0,91866.0,0.0017084]
[1732070894420,0.28980154,91867.0,91866.0,0.0017084]
[1732070895541,0.28780154,91867.0,91866.0,0.0017084]
[1732070897154,0.26042923,91867.0,91866.0,0.0017084]
[1732070897379,0.27780154,91867.0,91866.0,0.0017084]
[1732070897558,0.28780154,91867.0,91866.0,0.0017084]
[1732070898655,0.27780154,91867.0,91866.0,0.0017084]
[1732070898861,0.28780154,91867.0,91866.0,0.0017084]
[1732070903342,0.27780154,91867.0,91866.0,0.0017084]
[1732070903605,0.28780154,91867.0,91866.0,0.0017084]
[1732070904906,0.28980154,91867.0,91866.0,0.0017084]
[1732070905826,0.38980154,91867.0,91866.0,0.0017084]
[1732070907937,0.05573899,91864.0,91863.0,0.0017084]
[1732070908135,0.39262392,91864.0,91863.0,0.0017084]
[1732070908427,0.39262392,91864.0,91809.0,0.0017082]
[1732070908428,0.00737231,91816.0,91809.0,0.0017082]
[1732070909140,0.00737231,91816.0,91815.0,0.04604355]
[1732070909374,0.00737231,91816.0,91815.0,0.0017082]
[1732070910312,0.00336668,91824.0,91815.0,0.02450798]
[1732070910523,0.01,91843.0,91815.0,0.02450798]
[1732070910524,0.00336668,91832.0,91816.0,0.0495]
[1732070911914,0.00336668,91828.0,91816.0,0.0495]
[1732070912110,0.00336668,91826.0,91816.0,0.0495]
[1732070912336,0.00336668,91821.0,91816.0,0.0495]
[1732070912547,0.00336668,91824.0,91816.0,0.0495]
[1732070913098,0.00737231,91830.0,91816.0,0.0495]
[1732070914410,0.00737231,91830.0,91804.0,0.00262769]
[1732070914411,0.01336668,91832.0,91808.0,0.023]
[1732070914638,0.00336668,91832.0,91808.0,0.023]
[1732070915300,0.01,91830.0,91808.0,0.023]
[1732070916643,0.01,91830.0,91816.0,0.0017082]
[1732070916849,0.00711423,91830.0,91816.0,0.0017082]
[1732070917285,0.00711423,91830.0,91816.0,0.0370082]
[1732070922162,0.00711423,91830.0,91816.0,0.0017082]
[1732070923557,0.00711423,91824.0,91816.0,0.0460969]
[1732070923841,0.00711423,91823.0,91816.0,0.0017082]
[1732070923999,0.0752,91822.0,91816.0,0.0017082]
[1732070924487,0.00711423,91819.0,91816.0,0.0017082]
[1732070924699,0.00711423,91817.0,91816.0,0.0017082]
[1732070927692,0.05888091,91817.0,91816.0,0.04692198]
[1732070927986,0.16794346,91817.0,91816.0,0.0017082]
[1732070928138,0.24314346,91817.0,91816.0,0.0017082]
[1732070929042,0.24314346,91817.0,91816.0,0.00157007]
[1732070929722,0.24314346,91817.0,91816.0,0.04549531]
[1732070929935,0.24314346,91817.0,91816.0,0.00157007]
[1732070934460,0.24314346,91817.0,91816.0,0.04564548]
[1732070934681,0.24314346,91817.0,91816.0,0.00157007]
[1732070938207,0.24314346,91817.0,91816.0,0.04619719]
[1732070938532,0.24314346,91817.0,91816.0,0.00157007]
[1732070941706,0.00336668,91821.0,91816.0,0.04660766]
[1732070941888,0.00336668,91821.0,91816.0,0.00157007]
[1732070942364,0.0752,91824.0,91816.0,0.00157007]
[1732070942365,0.00711423,91823.0,91816.0,0.00157007]
[1732070942611,0.00336668,91823.0,91816.0,0.00157007]
[1732070943054,0.00711423,91828.0,91816.0,0.00157007]
[1732070943268,0.08316873,91830.0,91816.0,0.00157007]
[1732070943493,0.0008545,91830.0,91817.0,0.0353]
[1732070943781,0.0008545,91830.0,91818.0,0.1]
[1732070943931,0.0008545,91830.0,91818.0,0.19725487]
[1732070944376,0.0008545,91830.0,91819.0,0.09725487]
[1732070944628,0.0008545,91830.0,91820.0,0.09725487]
[1732070945025,0.00796873,91830.0,91820.0,0.09725487]
[1732070945266,0.00796873,91830.0,91821.0,0.09725487]
[1732070946173,0.0008545,91830.0,91821.0,0.09725487]
[1732070946393,0.0008545,91830.0,91822.0,0.09725487]
[1732070946816,0.0008545,91830.0,91820.0,0.24588231]
[1732070946817,0.0008545,91830.0,91825.0,0.09725487]
[1732070947739,0.0008545,91830.0,91824.0,0.09725487]
[1732070947978,0.0008545,91830.0,91825.0,0.09729759]
[1732070948412,0.0008545,91830.0,91826.0,0.09729759]
[1732070949853,0.0008545,91830.0,91827.0,0.09729759]
[1732070950546,0.01,91862.0,91825.0,0.14594639]
[1732070950547,0.075,91849.0,91830.0,0.1]
[1732070950911,0.00796853,91857.0,91828.0,0.03000879]
[1732070950912,0.075,91855.0,91835.0,0.1]
[1732070950924,0.10991685,91857.0,91839.0,0.09730456]
[1732070951186,0.10991685,91857.0,91847.0,0.1459629]
[1732070951187,0.0008543,91857.0,91847.0,0.1459629]
[1732070951516,0.0008543,91857.0,91852.0,0.09725838]
[1732070951908,0.0008543,91857.0,91854.0,0.09721246]
[1732070952053,0.0008543,91857.0,91856.0,0.09719865]
[1732070952339,0.0008543,91857.0,91854.0,0.14579798]
[1732070952340,0.0008543,91857.0,91855.0,0.1]
[1732070952663,0.1265,91873.0,91857.0,0.1]
[1732070952843,0.0008541,91877.0,91862.0,0.09712072]
[1732070952998,0.0008541,91877.0,91864.0,0.09712072]
[1732070953227,0.0008541,91877.0,91865.0,0.09712072]
[1732070953466,0.0008541,91877.0,91863.0,0.24568085]
[1732070953467,0.0008541,91877.0,91863.0,0.19712072]
[1732070953720,0.00796833,91877.0,91863.0,0.1]
[1732070953974,0.00796833,91877.0,91866.0,0.09712072]
[1732070954241,0.00796833,91877.0,91865.0,0.1]
[1732070955277,0.00796833,91877.0,91860.0,0.09712072]
[1732070955506,0.0776,91876.0,91859.0,0.1]
[1732070955728,0.0776,91876.0,91859.0,0.14469131]
[1732070956172,0.00711423,91872.0,91859.0,0.14469131]
[1732070956407,0.0489,91866.0,91859.0,0.04469131]
[1732070956874,0.0489,91866.0,91853.0,0.14527217]
[1732070956875,0.0489,91866.0,91855.0,0.09684811]
[1732070957567,0.0489,91866.0,91853.0,0.14344265]
[1732070958992,0.0776,91865.0,91853.0,0.14344265]
[1732070959968,0.00336668,91860.0,91853.0,0.04344265]
[1732070960164,0.00711423,91856.0,91853.0,0.04344265]
[1732070960463,0.00711423,91856.0,91852.0,0.09725838]
[1732070960672,0.00336668,91853.0,91852.0,0.09725838]
[1732070960911,0.00336668,91853.0,91852.0,0.14091451]
[1732070961619,0.00336668,91853.0,91852.0,0.04365613]
[1732070962074,0.00336668,91853.0,91828.0,0.023]
[1732070962315,0.00336668,91852.0,91832.0,0.023]
[1732070962557,0.00336668,91852.0,91830.0,0.1]
[1732070962826,0.00711423,91851.0,91830.0,0.1]
[1732070963318,0.00711423,91851.0,91828.0,0.1]
[1732070963569,0.00711423,91851.0,91828.0,0.023]
[1732070963809,0.00711423,91845.0,91829.0,0.1]
[1732070964088,0.0776,91849.0,91829.0,0.16796818]
[1732070964289,0.00336668,91853.0,91832.0,0.023]
[1732070964745,0.0489,91855.0,91832.0,0.02588577]
[1732070964977,0.00422138,91853.0,91832.0,0.023]
[1732070965718,0.0008547,91853.0,91832.0,0.023]
[1732070966291,0.0008547,91853.0,91830.0,0.1]
[1732070966292,0.00711423,91852.0,91830.0,0.1]
[1732070966435,0.00711423,91852.0,91828.0,0.1]
[1732070966436,0.00711423,91846.0,91828.0,0.1]
[1732070966683,0.00711423,91846.0,91827.0,0.05028504]
[1732070966907,0.19092923,91852.0,91827.0,0.00663332]
[1732070967136,0.19804346,91852.0,91827.0,0.00663332]
[1732070967376,0.00711423,91851.0,91827.0,0.00663332]
[1732070967608,0.00711423,91846.0,91827.0,0.00663332]
[1732070968301,0.00711423,91846.0,91824.0,0.06654121]
[1732070968302,0.00711423,91842.0,91824.0,0.06654121]
[1732070968577,0.08186668,91841.0,91824.0,0.06654121]
[1732070973117,0.0785,91841.0,91824.0,0.06654121]
[1732070974234,0.0785,91841.0,91824.0,0.16654121]
[1732070974721,0.0785,91841.0,91825.0,0.1968565]
[1732070974963,0.0485,91845.0,91829.0,0.023]
[1732070975179,0.0485,91845.0,91830.0,0.1]
[1732070975437,0.0785,91847.0,91831.0,0.023]
[1732070975636,0.0785,91847.0,91832.0,0.1]
[1732070977286,0.0785,91847.0,91832.0,0.1968565]
[1732070977732,0.0785,91847.0,91833.0,0.0968565]
[1732070978671,0.0785,91847.0,91832.0,0.1968565]
[1732070979120,0.0785,91847.0,91833.0,0.0968565]
[1732070980420,0.0785,91847.0,91832.0,0.1]
[1732070980421,0.0785,91847.0,91834.0,0.0968565]
[1732070982241,0.0785,91847.0,91832.0,0.1]
[1732070982242,0.0785,91847.0,91833.0,0.0968565]
[1732070982452,0.05511423,91846.0,91834.0,0.0968565]